fUST/lending_fUST_20240116
["ID","MTS","AMOUNT","RATE_DAILY","PERIOD"]
[311752753,1705377046293,-500.0,0.00026771,2]
[311752755,1705377046302,-500.0,0.00026771,2]
[311752757,1705377046311,-1051.06,0.00026771,2]
[311752759,1705377046320,-281.08154538,0.00026772,2]
[311752761,1705377046332,-920.06,0.00026772,2]
[311752763,1705377046342,-5484.47,0.00026806,2]
[311752765,1705377046351,-500.0,0.00026807,2]
[311752767,1705377046360,-500.0,0.00026807,2]
[311752775,1705377046435,-636.78,0.00026807,2]
[311752777,1705377046445,-1219.25,0.00026807,2]
[311752779,1705377046454,-572.48,0.00026808,2]
[311752782,1705377046464,-923.17,0.00026808,2]
[311752783,1705377046475,-500.0,0.00026808,2]
[311752785,1705377046484,-1511.34,0.00026808,2]
[311752787,1705377046493,-550.76,0.0002681,2]
[311752789,1705377046502,-1576.94,0.0002681,2]
[311752791,1705377046511,-8122.34,0.0002681,2]
[311752793,1705377046521,-500.0,0.0002681,2]
[311752795,1705377046530,-185.05898699,0.0002681,2]
[311752797,1705377046539,-2170.17,0.0002681,2]
[311752799,1705377046548,-289.77163343,0.00027,2]
[311752801,1705377046557,-461.06432413,0.00027,2]
[311752803,1705377046566,-500.0,0.00027044,2]
[311752805,1705377046575,-796.22,0.00027044,2]
[311752807,1705377046584,-500.0,0.00027045,2]
[311752809,1705377046594,-500.0,0.00027045,2]
[311752811,1705377046603,-535.01,0.00027045,2]
[311752813,1705377046612,-505.48,0.00027045,2]
[311752815,1705377046621,-733.48,0.00027045,2]
[311752817,1705377046630,-509.76,0.00027045,2]
[311752819,1705377046639,-2683.72,0.00027045,2]
[311752821,1705377046648,-1934.31,0.00027045,2]
[311752823,1705377046658,-500.0,0.00027045,2]
[311752825,1705377046667,-326.02271821,0.00027045,2]
[311752827,1705377046676,-1051.06,0.00027045,2]
[311752829,1705377046685,-920.06,0.00027046,2]
[311752831,1705377046695,-5484.47,0.0002708,2]
[311752833,1705377046704,-387.94175778,0.00027081,2]
[311752835,1705377046713,-226.08901048,0.00027081,2]
[311752838,1705377046729,-636.78,0.00027081,2]
[311752840,1705377046738,-1219.25,0.00027081,2]
[311752842,1705377046752,-572.48,0.00027082,2]
[311752844,1705377046761,-299.80929572,0.00027082,2]
[311752859,1705377046844,-623.36070428,0.00027082,2]
[311752861,1705377046853,-376.58101851,0.00027082,2]
[311752864,1705377046863,-1511.34,0.00027082,2]
[311752867,1705377046872,-550.76,0.00027084,2]
[311752869,1705377046881,-1576.94,0.00027084,2]
[311752871,1705377046890,-8122.34,0.00027084,2]
[311752872,1705377046899,-500.0,0.00027084,2]
[311752873,1705377046908,-2170.17,0.00027084,2]
[311752875,1705377046917,-1500.0,0.000271,2]
[311752876,1705377046926,-50000.0,0.00027108,2]
[311752878,1705377046935,-500.0,0.00027318,2]
[311752880,1705377046945,-796.22,0.00027318,2]
[311752882,1705377046954,-500.0,0.00027319,2]
[311752884,1705377046963,-500.0,0.00027319,2]
[311752887,1705377046974,-535.01,0.00027319,2]
[311752889,1705377046983,-505.48,0.00027319,2]
[311752891,1705377046993,-733.48,0.00027319,2]
[311752893,1705377047002,-509.76,0.00027319,2]
[311752894,1705377047011,-2683.72,0.00027319,2]
[311752897,1705377047020,-1934.31,0.00027319,2]
[311752898,1705377047030,-598.56938284,0.00027319,2]
[311752900,1705377047039,-1051.06,0.00027319,2]
[311752902,1705377047048,-920.06,0.0002732,2]
[311752904,1705377047057,-5484.47,0.00027354,2]
[311752906,1705377047066,-636.78,0.00027355,2]
[311752908,1705377047075,-1219.25,0.00027355,2]
[311752910,1705377047084,-572.48,0.00027356,2]
[311752912,1705377047094,-923.17,0.00027356,2]
[311752914,1705377047102,-1511.34,0.00027356,2]
[311752916,1705377047111,-550.76,0.00027358,2]
[311752918,1705377047120,-1576.94,0.00027358,2]
[311752920,1705377047129,-8122.34,0.00027358,2]
[311752922,1705377047138,-431.94716346,0.00027358,2]
[311752924,1705377047148,-2170.17,0.00027358,2]
[311752926,1705377047157,-155.0,0.00027397,2]
[311752928,1705377047166,-1000.0,0.00027397,2]
[311752929,1705377047175,-508.84364102,0.00027397,2]
[311752930,1705377047184,-10026.40145597,0.00027397,10]
[311752931,1705377047194,-630.64,0.00027397,2]
[311752932,1705377047203,-630.64,0.00027397,2]
[311752933,1705377047212,-630.64,0.00027397,2]
[311752934,1705377047222,-630.64,0.00027397,2]
[311752935,1705377047231,-630.64,0.00027397,2]
[311752936,1705377047241,-630.64,0.00027397,2]
[311752937,1705377047250,-630.64,0.00027397,2]
[311752938,1705377047259,-630.64,0.00027397,2]
[311752939,1705377047269,-630.64,0.00027397,2]
[311752940,1705377047278,-630.64,0.00027397,2]
[311752941,1705377047287,-630.64,0.00027397,2]
[311752942,1705377047297,-630.64,0.00027397,2]
[311752943,1705377047306,-630.64,0.00027397,2]
[311752944,1705377047315,-630.64,0.00027397,2]
[311752945,1705377047325,-630.64,0.00027397,2]
[311752946,1705377047334,-630.64,0.00027397,2]
[311752947,1705377047343,-500.0,0.00027397,2]
[311752948,1705377047353,-620.61880074,0.00027444,2]
[311752949,1705377047362,-500.0,0.00027534,2]
[311752950,1705377047372,-9110.22573903,0.0002755,4]
[311752951,1705377047382,-552.09202861,0.00027592,2]
[311752952,1705377047391,-796.22,0.00027592,2]
[311752953,1705377047401,-334.44168479,0.00027593,2]
[311752954,1705377047411,-500.0,0.00027593,2]
[311752955,1705377047421,-535.01,0.00027593,2]
[311752956,1705377047430,-630.64,0.00027593,2]
[311752957,1705377047440,-505.48,0.00027593,2]
[311752958,1705377047449,-733.48,0.00027593,2]
[311752959,1705377047458,-509.76,0.00027593,2]
[311752960,1705377047468,-2683.72,0.00027593,2]
[311752961,1705377047478,-1934.31,0.00027593,2]
[311752962,1705377047488,-1051.06,0.00027593,2]
[311752963,1705377047497,-920.06,0.00027594,2]
[311752964,1705377047507,-5484.47,0.00027628,2]
[311752965,1705377047518,-636.78,0.00027629,2]
[311752966,1705377047527,-1219.25,0.00027629,2]
[311752967,1705377047537,-572.48,0.0002763,2]
[311752968,1705377047546,-923.17,0.0002763,2]
[311752969,1705377047555,-1511.34,0.0002763,2]
[311752970,1705377047564,-550.76,0.00027632,2]
[311752971,1705377047574,-1576.94,0.00027632,2]
[311752972,1705377047583,-8122.34,0.00027632,2]
[311752973,1705377047592,-500.0,0.00027671,2]
[311752974,1705377047601,-198.9082381,0.00027671,2]
[311752975,1705377047610,-198.9082381,0.00027671,2]
[311752976,1705377047620,-198.9082381,0.00027671,2]
[311752977,1705377047629,-198.9082381,0.00027671,2]
[311752978,1705377047639,-198.9082381,0.00027671,2]
[311752979,1705377047648,-198.9082381,0.00027671,2]
[311752980,1705377047658,-198.9082381,0.00027671,2]
[311752981,1705377047668,-198.9082381,0.00027671,2]
[311752982,1705377047677,-500.0,0.00027808,2]
[311752983,1705377047686,-796.22,0.00027866,2]
[311752984,1705377047696,-623.51357301,0.00027867,2]
[311752985,1705377047706,-535.01,0.00027867,2]
[311752986,1705377047714,-630.64,0.00027867,2]
[311752987,1705377047724,-505.48,0.00027867,2]
[311752988,1705377047733,-733.48,0.00027867,2]
[311752989,1705377047742,-509.76,0.00027867,2]
[311752990,1705377047752,-2683.72,0.00027867,2]
[311752991,1705377047762,-1934.31,0.00027867,2]
[311752992,1705377047771,-1051.06,0.00027867,2]
[311752993,1705377047780,-920.06,0.00027868,2]
[311752994,1705377047789,-5484.47,0.00027902,2]
[311752995,1705377047799,-636.78,0.00027903,2]
[311752996,1705377047808,-1219.25,0.00027903,2]
[311752997,1705377047817,-572.48,0.00027904,2]
[311752998,1705377047826,-923.17,0.00027904,2]
[311752999,1705377047835,-1511.34,0.00027904,2]
[311753000,1705377047844,-550.76,0.00027906,2]
[311753001,1705377047853,-1576.94,0.00027906,2]
[311753002,1705377047862,-8122.34,0.00027906,2]
[311753003,1705377047871,-151.0,0.00027915,2]
[311753004,1705377047880,-500.0,0.00027945,2]
[311753005,1705377047889,-4112.7341507,0.00028,2]
[311753006,1705377047898,-500.0,0.00028082,2]
[311753007,1705377047907,-1500.0,0.000281,2]
[311753008,1705377047916,-796.22,0.0002814,2]
[311753009,1705377047925,-535.01,0.00028141,2]
[311753010,1705377047934,-630.64,0.00028141,2]
[311753011,1705377047943,-505.48,0.00028141,2]
[311753012,1705377047953,-733.48,0.00028141,2]
[311753013,1705377048026,-509.76,0.00028141,2]
[311753014,1705377048035,-2683.72,0.00028141,2]
[311753015,1705377048045,-1934.31,0.00028141,2]
[311753016,1705377048054,-1051.06,0.00028141,2]
[311753017,1705377048063,-920.06,0.00028142,2]
[311753018,1705377048073,-5484.47,0.00028176,2]
[311753019,1705377048082,-636.78,0.00028177,2]
[311753020,1705377048091,-1219.25,0.00028177,2]
[311753021,1705377048100,-572.48,0.00028178,2]
[311753022,1705377048110,-923.17,0.00028178,2]
[311753023,1705377048120,-1511.34,0.00028178,2]
[311753024,1705377048129,-550.76,0.0002818,2]
[311753025,1705377048138,-1576.94,0.0002818,2]
[311753026,1705377048147,-8122.34,0.0002818,2]
[311753027,1705377048157,-500.0,0.00028219,2]
[311753028,1705377048167,-500.0,0.00028356,2]
[311753029,1705377048176,-796.22,0.00028414,2]
[311753030,1705377048185,-535.01,0.00028415,2]
[311753031,1705377048195,-630.64,0.00028415,2]
[311753032,1705377048204,-505.48,0.00028415,2]
[311753033,1705377048213,-733.48,0.00028415,2]
[311753034,1705377048223,-509.76,0.00028415,2]
[311753035,1705377048232,-2683.72,0.00028415,2]
[311753036,1705377048241,-1934.31,0.00028415,2]
[311753037,1705377048251,-1051.06,0.00028415,2]
[311753038,1705377048260,-920.06,0.00028416,2]
[311753039,1705377048269,-5484.47,0.0002845,2]
[311753040,1705377048278,-636.78,0.00028451,2]
[311753041,1705377048288,-1219.25,0.00028451,2]
[311753042,1705377048297,-572.48,0.00028452,2]
[311753043,1705377048307,-923.17,0.00028452,2]
[311753044,1705377048316,-1511.34,0.00028452,2]
[311753045,1705377048327,-550.76,0.00028454,2]
[311753046,1705377048338,-1576.94,0.00028454,2]
[311753047,1705377048347,-8122.34,0.00028454,2]
[311753048,1705377048357,-500.0,0.00028493,2]
[311753049,1705377048367,-153.2565765,0.00028493,2]
[311753050,1705377048377,-153.2749664,0.00028493,2]
[311753051,1705377048388,-154.7203108,0.00028493,2]
[311753052,1705377048397,-1000.0,0.00028495,2]
[311753053,1705377048406,-156.70193537,0.00028529,2]
[311753054,1705377048416,-155.00465014,0.0002853,2]
[311753055,1705377048426,-500.0,0.0002863,2]
[311753056,1705377048436,-5000.0,0.00028652,5]
[311753057,1705377048445,-5000.0,0.00028669,5]
[311753058,1705377048455,-796.22,0.00028688,2]
[311753059,1705377048464,-535.01,0.00028689,2]
[311753060,1705377048474,-630.64,0.00028689,2]
[311753061,1705377048483,-505.48,0.00028689,2]
[311753062,1705377048493,-733.48,0.00028689,2]
[311753063,1705377048502,-509.76,0.00028689,2]
[311753064,1705377048511,-2683.72,0.00028689,2]
[311753065,1705377048520,-1934.31,0.00028689,2]
[311753066,1705377048529,-1051.06,0.00028689,2]
[311753067,1705377048539,-920.06,0.0002869,2]
[311753068,1705377048548,-1013.56596388,0.000287,2]
[311753069,1705377048557,-5000.0,0.000287,5]
[311753070,1705377048566,-5484.47,0.00028724,2]
[311753071,1705377048576,-636.78,0.00028725,2]
[311753072,1705377048585,-1219.25,0.00028725,2]
[311753073,1705377048594,-572.48,0.00028726,2]
[311753074,1705377048603,-923.17,0.00028726,2]
[311753075,1705377048613,-1511.34,0.00028726,2]
[311753076,1705377048622,-550.76,0.00028728,2]
[311753077,1705377048631,-1576.94,0.00028728,2]
[311753078,1705377048641,-8122.34,0.00028728,2]
[311753079,1705377048650,-5000.0,0.00028743,5]
[311753080,1705377048659,-5000.0,0.00028743,5]
[311753081,1705377048668,-5000.0,0.00028743,5]
[311753082,1705377048677,-16602.20725069,0.00028743,4]
[311753083,1705377048687,-5000.0,0.00028743,5]
[311753084,1705377048696,-5000.0,0.00028743,5]
[311753085,1705377048705,-5000.0,0.00028743,5]
[311753086,1705377048714,-5000.0,0.00028743,5]
[311753087,1705377048724,-5000.0,0.00028743,5]
[311753088,1705377048734,-21556.50264004,0.00028743,3]
[311753089,1705377048743,-5000.0,0.00028743,5]
[311753090,1705377048753,-5000.0,0.00028743,5]
[311753091,1705377048762,-5000.0,0.00028743,5]
[311753092,1705377048773,-5000.0,0.00028743,5]
[311753093,1705377048782,-5000.0,0.00028743,5]
[311753094,1705377048791,-5000.0,0.00028743,5]
[311753095,1705377048801,-5000.0,0.00028743,5]
[311753096,1705377048810,-5000.0,0.00028743,5]
[311753097,1705377048819,-5000.0,0.00028743,5]
[311753098,1705377048828,-5000.0,0.00028743,5]
[311753099,1705377048838,-63643.78693461,0.00028743,4]
[311753100,1705377048847,-5000.0,0.00028743,5]
[311753101,1705377048856,-5000.0,0.00028743,5]
[311753102,1705377048866,-3876.60778427,0.00028749,2]
[311753103,1705377048876,-5000.0,0.00028755,5]
[311753104,1705377048885,-5000.0,0.00028755,5]
[311753105,1705377048894,-155.0,0.00028767,2]
[311753106,1705377048903,-500.0,0.00028767,2]
[311753107,1705377048912,-620.03094004,0.00028817,2]
[311753108,1705377048921,-1000.0,0.00028835,2]
[311753109,1705377048931,-300.0,0.00028868,2]
[311753110,1705377048940,-16445.85529609,0.00028902,4]
[311753111,1705377048949,-5000.0,0.00028902,5]
[311753112,1705377048958,-5000.0,0.00028902,5]
[311753113,1705377048967,-500.0,0.00028904,2]
[311753114,1705377048977,-5000.0,0.00028914,5]
[311753115,1705377048986,-215.25767397,0.00028918,2]
[311753116,1705377048995,-5000.0,0.00028953,5]
[311753117,1705377049004,-796.22,0.00028962,2]
[311753118,1705377049013,-535.01,0.00028963,2]
[311753119,1705377049022,-630.64,0.00028963,2]
[311753120,1705377049032,-505.48,0.00028963,2]
[311753121,1705377049041,-733.48,0.00028963,2]
[311753122,1705377049050,-509.76,0.00028963,2]
[311753123,1705377049059,-2683.72,0.00028963,2]
[311753124,1705377049068,-1934.31,0.00028963,2]
[311753125,1705377049077,-1051.06,0.00028963,2]
[311753126,1705377049086,-920.06,0.00028964,2]
[311753127,1705377049095,-5000.0,0.00028972,5]
[311753128,1705377049104,-5000.0,0.00028972,5]
[311753129,1705377049112,-5000.0,0.00028972,5]
[311753130,1705377049121,-2396.99773272,0.00028998,2]
[311753131,1705377049134,-2454.50529405,0.00028998,2]
[311753132,1705377049273,-191.5843317,0.00023208,2]
[311753133,1705377049283,-268.46238342,0.00023208,2]
[311753134,1705377049292,-13.40230376,0.00023208,2]
[311753147,1705377266995,6063.9906055,0.00021,2]
[311753168,1705377966206,-2405.41518822,0.00021655,2]
[311753169,1705377966406,-49.09010588,0.00021655,2]
[311753260,1705378237887,-166.9196557,0.00021918,2]
[311753263,1705378237897,-264.28572285,0.00021999,2]
[311753265,1705378237906,-10137.79263349,0.00022608,2]
[311753267,1705378237915,-2135.09360923,0.00022609,2]
[311753269,1705378237926,-470.14941068,0.0002261,2]
[311753271,1705378237935,-500.0,0.00022612,2]
[311753273,1705378237945,-502.53367144,0.00022612,2]
[311753275,1705378237954,-500.0,0.00022612,2]
[311753277,1705378237964,-500.97200816,0.00022612,2]
[311753279,1705378237973,-501.24953193,0.00022612,2]
[311753281,1705378237983,-500.0,0.00022612,2]
[311753283,1705378237992,-500.0,0.00022612,2]
[311753285,1705378238001,-500.0,0.00022612,2]
[311753287,1705378238010,-635.28684981,0.00022612,2]
[311753289,1705378238019,-500.0,0.00022612,2]
[311753291,1705378238028,-500.0,0.00022612,2]
[311753293,1705378238037,-623.51357301,0.00022612,2]
[311753295,1705378238046,-500.0,0.00022612,2]
[311753297,1705378238055,-500.0,0.00022612,2]
[311753299,1705378238065,-505.51400438,0.00022612,2]
[311753301,1705378238074,-500.0,0.00022612,2]
[311753303,1705378238083,-500.0,0.00022612,2]
[311753305,1705378238093,-500.0,0.00022612,2]
[311753307,1705378238102,-500.0,0.00022612,2]
[311753309,1705378238111,-500.0,0.00022612,2]
[311753311,1705378238120,-500.0,0.00022612,2]
[311753313,1705378238128,-500.0,0.00022697,2]
[311753315,1705378238137,-500.0,0.000227,2]
[311753316,1705378238146,-500.0,0.000227,2]
[311753318,1705378238156,-500.0,0.000227,2]
[311753320,1705378238166,-502.22218072,0.000227,2]
[311753322,1705378238175,-501.93438759,0.000227,2]
[311753325,1705378238184,-519.45523657,0.000227,2]
[311753327,1705378238193,-500.0,0.000227,2]
[311753329,1705378238202,-500.0,0.000227,2]
[311753331,1705378238212,-500.0,0.000227,2]
[311753333,1705378238221,-500.0,0.000227,2]
[311753335,1705378238230,-500.0,0.000227,2]
[311753337,1705378238239,-500.0,0.000227,2]
[311753338,1705378238248,-500.0,0.000227,2]
[311753340,1705378238257,-500.0,0.000227,2]
[311753343,1705378238267,-507.02958341,0.000227,2]
[311753345,1705378238276,-500.0,0.000227,2]
[311753347,1705378238287,-502.52570478,0.000227,2]
[311753348,1705378238296,-500.0,0.000227,2]
[311753350,1705378238305,-502.45515726,0.000227,2]
[311753352,1705378238315,-500.0,0.000227,2]
[311753354,1705378238324,-500.0,0.000227,2]
[311753357,1705378238334,-495.49025751,0.000227,2]
[311753358,1705378238344,-500.0,0.000227,2]
[311753361,1705378238355,-500.0,0.000227,2]
[311753362,1705378238365,-500.0,0.000227,2]
[311753365,1705378238374,-501.47802977,0.000227,2]
[311753367,1705378238384,-502.49556214,0.000227,2]
[311753369,1705378238394,-504.59283408,0.000227,2]
[311753371,1705378238403,-500.86629979,0.000227,2]
[311753373,1705378238412,-500.0,0.000227,2]
[311753375,1705378238423,-500.0,0.000227,2]
[311753377,1705378238432,-500.0,0.000227,2]
[311753379,1705378238441,-503.24411305,0.000227,2]
[311753381,1705378238450,-500.0,0.000227,2]
[311753383,1705378238459,-503.55595716,0.000227,2]
[311753385,1705378238468,-254.73333895,0.000227,2]
[311753387,1705378238478,-500.0,0.000227,2]
[311753389,1705378238488,-554.32556193,0.000227,2]
[311753391,1705378238497,-500.0,0.000227,2]
[311753393,1705378238509,-500.0,0.000227,2]
[311753405,1705378238607,-510.22549501,0.000227,2]
[311753407,1705378238617,-500.4137572,0.000227,2]
[311753409,1705378238626,-500.0,0.000227,2]
[311753411,1705378238635,-568.69945561,0.000227,2]
[311753413,1705378238644,-500.0,0.000227,2]
[311753415,1705378238654,-502.71971081,0.000227,2]
[311753417,1705378238663,-500.0,0.000227,2]
[311753419,1705378238672,-500.0,0.000227,2]
[311753422,1705378238682,-526.63370436,0.000227,2]
[311753424,1705378238691,-504.42543785,0.000227,2]
[311753425,1705378238701,-526.45,0.000227,2]
[311753428,1705378238710,-500.0,0.000227,2]
[311753430,1705378238719,-500.0,0.00022886,2]
[311753432,1705378238728,-500.0,0.00022886,2]
[311753435,1705378238750,-607.49,0.00022886,2]
[311753437,1705378238760,-500.0,0.00022886,2]
[311753439,1705378238769,-500.0,0.00022886,2]
[311753441,1705378238779,-500.0,0.00022886,2]
[311753443,1705378238789,-517.68,0.00022886,2]
[311753445,1705378238798,-500.0,0.00022886,2]
[311753447,1705378238808,-520.26,0.00022974,2]
[311753449,1705378238818,-500.0,0.00022974,2]
[311753451,1705378238827,-155.45172109,0.00023159,2]
[311753453,1705378238837,-157.37068591,0.00023159,2]
[311753455,1705378238847,-500.0,0.0002316,2]
[311753458,1705378238858,-500.0,0.0002316,2]
[311753460,1705378238871,-500.0,0.0002316,2]
[311753462,1705378238881,-500.0,0.0002316,2]
[311753464,1705378238890,-500.0,0.0002316,2]
[311753466,1705378238899,-298.50922313,0.00023207,2]
[311753468,1705378238910,-251.81591471,0.00023208,2]
[311753470,1705378238919,-500.0,0.00023208,2]
[311753472,1705378238929,-500.0,0.00023208,2]
[311753474,1705378238938,-557.01681763,0.00023208,2]
[311753476,1705378238949,-155.14192239,0.00023208,2]
[311753478,1705378238958,-464.97987774,0.00023208,2]
[311753480,1705378238967,-500.0,0.00023208,2]
[311753482,1705378238977,-503.69330106,0.00023208,2]
[311753484,1705378238986,-500.0,0.00023208,2]
[311753486,1705378238996,-500.0,0.00023208,2]
[311753488,1705378239005,-510.7533894,0.00023208,2]
[311753490,1705378239014,-1863.64,0.00023208,2]
[311753492,1705378239023,-506.82525542,0.00023208,2]
[311753494,1705378239033,-505.48619077,0.00023208,2]
[311753497,1705378239043,-500.0,0.00023208,2]
[311753499,1705378239052,-500.0,0.00023209,2]
[311753501,1705378239062,-500.0,0.00023209,2]
[311753503,1705378239071,-500.0,0.00023209,2]
[311753505,1705378239082,-500.0,0.00023209,2]
[311753507,1705378239092,-500.0,0.00023209,2]
[311753509,1705378239102,-500.0,0.00023209,2]
[311753511,1705378239111,-500.0,0.00023248,2]
[311753513,1705378239121,-287.81,0.00023434,2]
[311753515,1705378239130,-500.0,0.00023434,2]
[311753517,1705378239139,-500.0,0.00023434,2]
[311753519,1705378239149,-500.0,0.00023434,2]
[311753521,1705378239158,-500.0,0.00023434,2]
[311753523,1705378239167,-262.31396518,0.0002348,2]
[311753525,1705378239176,-161.06769399,0.00023481,2]
[311753527,1705378239186,-500.0,0.00023481,2]
[311753529,1705378239195,-695.62,0.00023481,2]
[311753532,1705378239205,-3427.47,0.00023481,2]
[311753534,1705378239214,-500.0,0.00023481,2]
[311753536,1705378239223,-505.80766858,0.00023481,2]
[311753539,1705378239233,-533.71370212,0.00023481,2]
[311753541,1705378239243,-871.85,0.00023481,2]
[311753542,1705378239252,-500.0,0.00023481,2]
[311753544,1705378239262,-500.0,0.00023481,2]
[311753547,1705378239272,-1200.81755105,0.00023482,2]
[311753549,1705378239282,-501.79291396,0.00023482,2]
[311753551,1705378239291,-553.8722645,0.00023482,2]
[311753553,1705378239301,-500.0,0.00023482,2]
[311753555,1705378239310,-500.0,0.00023482,2]
[311753557,1705378239319,-195.8402758,0.00023482,2]
[311753559,1705378239328,-500.0,0.00023482,2]
[311753561,1705378239338,-500.0,0.00023482,2]
[311753563,1705378239347,-500.0,0.00023482,2]
[311753565,1705378239356,-500.0,0.00023482,2]
[311753567,1705378239365,-500.0,0.00023482,2]
[311753569,1705378239374,-389.69726506,0.00023482,2]
[311753571,1705378239383,-500.0,0.00023482,2]
[311753573,1705378239392,-1863.64,0.00023482,2]
[311753575,1705378239401,-500.0,0.00023482,2]
[311753577,1705378239410,-500.0,0.00023482,2]
[311753579,1705378239420,-500.0,0.00023482,2]
[311753581,1705378239429,-500.0,0.00023522,2]
[311753583,1705378239438,-500.0,0.00023708,2]
[311753585,1705378239447,-500.0,0.00023708,2]
[311753587,1705378239456,-500.0,0.00023708,2]
[311753589,1705378239465,-500.0,0.00023708,2]
[311753591,1705378239475,-695.62,0.00023755,2]
[311753593,1705378239484,-3427.47,0.00023755,2]
[311753595,1705378239493,-163.3226322,0.00023755,2]
[311753597,1705378239502,-871.85,0.00023755,2]
[311753598,1705378239510,-500.0,0.00023755,2]
[311753601,1705378239520,-500.0,0.00023755,2]
[311753603,1705378239529,-500.0,0.00023756,2]
[311753605,1705378239538,-500.0,0.00023756,2]
[311753606,1705378239548,-500.0,0.00023756,2]
[311753609,1705378239557,-500.0,0.00023756,2]
[311753611,1705378239567,-1863.64,0.00023756,2]
[311753613,1705378239576,-500.0,0.00023756,2]
[311753615,1705378239586,-500.0,0.00023791,2]
[311753617,1705378239595,-501.32561282,0.00023791,2]
[311753619,1705378239605,-500.0,0.00023791,2]
[311753621,1705378239615,-500.0,0.00023791,2]
[311753623,1705378239624,-470.23578443,0.00023791,2]
[311753625,1705378239633,-500.0,0.00023791,2]
[311753627,1705378239643,-241.69991872,0.00023791,2]
[311753629,1705378239652,-504.69559052,0.00023791,2]
[311753631,1705378239662,-503.80866795,0.00023791,2]
[311753633,1705378239671,-505.39912987,0.00023791,2]
[311753635,1705378239680,-500.0,0.00023791,2]
[311753637,1705378239689,-218.13816662,0.00023791,2]
[311753639,1705378239699,-510.710076,0.00023791,2]
[311753641,1705378239708,-504.97146402,0.00023791,2]
[311753643,1705378239718,-500.0,0.00023791,2]
[311753645,1705378239727,-500.0,0.00023791,2]
[311753647,1705378239737,-500.0,0.00023791,2]
[311753650,1705378239748,-504.97455114,0.00023791,2]
[311753652,1705378239757,-501.10516711,0.00023791,2]
[311753654,1705378239767,-500.0,0.00023791,2]
[311753656,1705378239776,-500.0,0.00023796,2]
[311753658,1705378239785,-500.0,0.00023981,2]
[311753660,1705378239794,-1064.74,0.00023981,2]
[311753662,1705378239804,-725.36,0.00023981,2]
[311753664,1705378239813,-500.0,0.00023981,2]
[311753666,1705378239822,-406.7888539,0.00023981,2]
[311753668,1705378239832,-500.0,0.00023981,2]
[311753670,1705378239841,-203.36778694,0.00023981,2]
[311753672,1705378239850,-500.0,0.00023981,2]
[311753674,1705378239859,-501.46614651,0.00023981,2]
[311753676,1705378239870,-500.0,0.00023981,2]
[311753678,1705378239880,-500.0,0.00023982,2]
[311753680,1705378239889,-500.0,0.00023982,2]
[311753682,1705378239899,-500.0,0.00023982,2]
[311753684,1705378239908,-500.0,0.00023982,2]
[311753686,1705378239917,-4009.14861516,0.00024,2]
[311753688,1705378239926,-695.62,0.00024029,2]
[311753690,1705378239935,-3427.47,0.00024029,2]
[311753692,1705378239944,-871.85,0.00024029,2]
[311753694,1705378239954,-220.94,0.00024029,2]
[311753696,1705378239963,-500.0,0.0002403,2]
[311753698,1705378239972,-500.0,0.0002403,2]
[311753701,1705378239982,-500.0,0.0002403,2]